bitfinex/quotes_ETHUSD_20250328
["timestamp","ask_amount","ask_price","bid_price","bid_amount"]
[1743131075736,0.03471301,2011.7,2011.4,0.47136472]
[1743131077930,9.97630301,2011.8,2011.4,0.47136472]
[1743131078130,5.00566301,2011.7,2011.4,0.47136472]
[1743131079940,4.97131,2011.6,2011.4,0.47136472]
[1743131080130,5.79551,2011.6,2011.4,0.47136472]
[1743131080332,5.83022301,2011.6,2011.4,0.47136472]
[1743131081273,4.97289,2010.9,2010.7,0.42020837]
[1743131081457,0.03471301,2010.8,2010.4,0.8187]
[1743131081775,0.03471301,2010.8,2010.1,0.8267]
[1743131081776,4.97359,2010.7,2010.1,0.8267]
[1743131081939,4.97359,2010.7,2010.2,14.92536837]
[1743131082270,5.00830301,2010.7,2010.2,14.92536837]
[1743131082465,5.00820301,2010.7,2010.2,14.92536837]
[1743131082648,5.00820301,2010.7,2010.2,15.30391336]
[1743131082970,0.03471301,2010.7,2010.2,15.30391336]
[1743131083267,0.03471301,2010.7,2010.3,1.61306134]
[1743131083667,9.98173301,2010.7,2010.3,1.61306134]
[1743131083874,9.94702,2010.7,2010.2,0.47510945]
[1743131084176,4.9734,2010.7,2010.2,0.47510945]
[1743131085484,5.00786301,2010.8,2010.2,0.47510945]
[1743131085766,5.00786301,2010.8,2010.2,3.90209319]
[1743131085975,5.00786301,2010.8,2010.3,14.5]
[1743131086173,5.00786301,2010.8,2010.3,16.72287932]
[1743131086608,4.97339,2010.7,2010.3,16.72287932]
[1743131086764,4.97315,2010.8,2010.3,16.72287932]
[1743131086965,0.03471301,2010.7,2010.3,16.72287932]
[1743131089177,5.00810301,2010.7,2010.3,16.72287932]
[1743131089377,5.00810301,2010.7,2010.3,14.5]
[1743131090058,0.03471301,2010.7,2010.3,14.5]
[1743131090564,0.03471301,2010.7,2010.2,3.85235211]
[1743131090770,0.03471301,2010.7,2010.3,0.7776]
[1743131092282,5.46081301,2010.9,2010.4,0.04974067]
[1743131092582,10.43373301,2010.9,2010.3,0.7776]
[1743131092763,10.39902,2010.9,2010.4,0.46299521]
[1743131092965,5.00786301,2010.8,2010.4,0.46299521]
[1743131093365,0.03471301,2010.8,2010.4,0.46299521]
[1743131097098,5.00785301,2010.8,2010.4,0.46299521]
[1743131098664,0.03471301,2010.8,2010.4,0.46299521]
[1743131100299,5.00790301,2010.8,2010.4,0.46299521]
[1743131100666,4.9734,2010.7,2010.3,0.7776]
[1743131100866,0.80171301,2010.6,2010.2,0.42536837]
[1743131101796,3.42698374,2010.5,2009.9,6.7899]
[1743131102018,0.03471301,2010.4,2010.0,0.04974501]
[1743131102770,0.03471301,2010.4,2010.1,4.19918374]
[1743131102972,9.61902,2010.9,2010.3,0.7722]
[1743131102973,5.79619301,2010.8,2010.3,0.7722]
[1743131103466,5.79619301,2010.8,2010.4,14.5]
[1743131103869,4.9735,2010.7,2010.4,14.5]
[1743131104069,4.9735,2010.7,2010.3,0.7722]
[1743131104282,5.00821301,2010.7,2010.3,0.7722]
[1743131104500,5.00821301,2010.7,2010.3,15.2722]
[1743131105069,5.00821301,2010.7,2010.3,0.7722]
[1743131107102,0.03471301,2010.7,2010.3,0.7722]
[1743131107603,5.00812301,2010.7,2010.3,0.7722]
[1743131111213,0.03471301,2010.7,2010.3,0.7722]
[1743131113189,5.00812301,2010.7,2010.4,14.5]
[1743131114390,9.98170301,2010.7,2010.4,14.5]
[1743131114596,4.97341,2010.7,2010.4,14.5]
[1743131114778,5.00812301,2010.7,2010.4,14.5]
[1743131116223,5.00812301,2010.7,2010.1,1.17533933]
[1743131116383,5.00812301,2010.7,2010.1,4.60232307]
[1743131116580,5.00812301,2010.7,2010.2,14.96520646]
[1743131117024,4.97377,2010.6,2010.2,17.09677011]
[1743131117210,0.81651301,2010.5,2010.2,14.96520646]
[1743131117723,0.7818,2010.5,2010.2,17.09677011]
[1743131121621,5.7557,2010.5,2010.2,14.5]
[1743131121823,0.03471301,2010.4,2010.0,5.13156365]
[1743131122328,5.00884301,2010.4,2010.0,16.63156365]
[1743131123852,0.03471301,2010.4,2010.0,16.63156365]
[1743131124141,0.03471301,2010.4,2010.1,2.13156365]
[1743131124343,5.79041301,2010.5,2010.1,2.13156365]
[1743131124848,5.79041301,2010.5,2010.2,14.5]
[1743131125410,5.7557,2010.5,2010.2,14.5]
[1743131130608,0.03471301,2010.4,2010.2,14.5]
[1743131132238,0.8011,2010.2,2009.9,3.0]
[1743131132425,4.975,2010.1,2009.8,4.91919744]
[1743131132630,10.75068,2010.2,2009.8,4.91919744]
[1743131132971,7.90738365,2010.2,2009.8,19.41919744]
[1743131133311,7.90738365,2010.2,2009.8,21.34176283]
[1743131133512,0.03471301,2010.1,2009.8,21.34176283]
[1743131134146,7.94209666,2010.2,2009.8,21.34176283]
[1743131134379,7.94209666,2010.2,2009.8,19.41919744]
[1743131134380,12.91687666,2010.2,2009.8,19.41919744]
[1743131134606,2.13156365,2010.1,2009.8,4.91919744]
[1743131134751,4.97537,2009.9,2009.8,4.91919744]
[1743131134954,5.73047,2009.9,2009.8,4.91919744]
[1743131135151,5.76518301,2009.9,2009.5,0.01018869]
[1743131135493,4.97564,2009.8,2009.5,0.01018869]
[1743131135691,0.03471301,2009.7,2009.5,0.01018869]
[1743131136346,0.7551,2009.6,2009.5,0.01018869]
[1743131137046,5.73121,2009.6,2009.5,0.01018869]
[1743131137564,5.76592301,2009.6,2009.5,0.01018869]
[1743131140175,5.83042301,2009.6,2009.5,0.01018869]
[1743131141630,9.38042301,2009.6,2009.5,0.01018869]
[1743131145176,15.39042301,2009.6,2009.5,0.01018869]
[1743131145415,15.35571,2009.6,2009.5,0.01018869]
[1743131147286,20.00371,2009.6,2009.5,0.01018869]
[1743131162271,49.423741,2009.6,2009.5,0.01018869]
[1743131162642,9.30896,2009.5,2009.4,2.29e-06]
[1743131162941,9.30896,2009.5,2008.6,0.801]
[1743131162942,4.97834,2008.7,2008.6,0.801]
[1743131163166,5.01305301,2008.7,2008.6,0.801]
[1743131163365,4.97864,2008.6,2008.4,0.801]
[1743131163663,5.01335301,2008.6,2008.4,0.801]
[1743131164223,8.07666257,2008.9,2008.4,0.801]
[1743131164541,5.01291301,2008.8,2008.4,0.801]
[1743131165364,4.97834,2008.7,2008.4,0.801]
[1743131165869,5.01305301,2008.7,2008.4,0.801]
[1743131166024,4.97876,2008.6,2008.4,0.801]
[1743131166225,5.01354301,2008.5,2008.4,0.801]
[1743131169230,0.03471301,2008.5,2008.2,0.8033]
[1743131170160,5.01366301,2008.5,2008.2,0.8033]
[1743131170363,4.97919,2008.4,2008.2,0.8033]
[1743131170861,5.01390301,2008.4,2008.2,0.8033]
[1743131171169,4.97958,2008.2,2008.1,0.05]
[1743131171366,5.01429301,2008.2,2008.1,0.05]
[1743131175442,0.03471301,2008.2,2008.1,0.05]
[1743131177064,5.01429301,2008.2,2008.1,0.05]
[1743131177867,0.03471301,2008.2,2008.1,0.05]
[1743131178189,5.01429301,2008.2,2008.1,0.05]
[1743131178350,0.03471301,2008.2,2008.1,0.05]
[1743131179182,5.01397301,2008.4,2008.1,0.05]
[1743131179759,9.99327301,2008.4,2008.1,0.05]
[1743131180057,9.95856,2008.4,2008.1,0.05]
[1743131180256,0.03471301,2008.3,2008.2,0.7898]
[1743131180445,4.97877,2008.6,2008.2,0.7898]
[1743131180645,4.97769,2009.0,2008.5,3.42866257]
[1743131180857,0.03471301,2008.9,2008.6,0.7898]
[1743131182582,5.01258301,2008.9,2008.6,0.7898]
[1743131183471,4.28437558,2008.9,2008.2,0.805]
[1743131183689,4.97897,2008.5,2008.2,0.805]
[1743131183986,0.03471301,2008.4,2008.2,0.805]
[1743131184182,5.01380301,2008.4,2008.2,0.805]
[1743131184353,0.03471301,2008.4,2008.2,0.805]
[1743131184749,0.03471301,2008.5,2008.2,0.805]
[1743131185582,0.03471301,2008.6,2008.2,0.805]
[1743131185999,0.03471301,2008.6,2008.3,0.7593]
[1743131187103,4.97896,2008.5,2008.1,0.8093]
[1743131187607,5.01367301,2008.5,2008.1,0.8093]
[1743131189108,5.01367301,2008.5,2008.1,0.05]
[1743131189109,4.97933,2008.3,2008.1,0.05]
[1743131189438,8.44295558,2008.2,2008.1,0.05]
[1743131190223,8.79799301,2008.2,2008.1,0.05]
[1743131190511,3.81841301,2008.2,2008.1,0.05]
[1743131190696,3.03471301,2008.2,2008.1,0.05]
[1743131190882,9.36239301,2008.2,2008.1,0.05]
[1743131191084,5.77942,2007.5,2007.4,0.117182]
[1743131191400,5.77942,2007.5,2007.4,0.867482]
[1743131191401,0.03471301,2007.5,2007.4,0.867482]
[1743131191584,8.01515301,2007.9,2007.4,0.867482]
[1743131191770,4.98062,2007.8,2007.4,0.867482]
[1743131191971,0.03471301,2007.7,2007.4,0.867482]
[1743131192169,4.98061,2007.8,2007.4,0.867482]
[1743131192424,0.03471301,2007.7,2007.4,0.867482]
[1743131192972,3.0,2007.9,2007.4,0.867482]
[1743131192973,3.03471301,2007.9,2007.4,0.867482]
[1743131193270,8.01504301,2007.9,2007.4,0.91729228]
[1743131193465,8.01504301,2007.9,2007.4,0.867482]
[1743131194519,8.01504301,2007.9,2007.4,0.91729234]
[1743131194725,0.03471301,2007.9,2007.4,1.35188783]
[1743131195022,0.03471301,2008.0,2007.4,1.30207749]
[1743131195231,0.03471301,2008.0,2007.5,14.5]
[1743131195721,5.01485301,2008.0,2007.5,14.5]
[1743131195875,4.98034,2007.9,2007.5,14.5]
[1743131196079,0.03471301,2007.8,2007.5,14.5]
[1743131196777,5.01531301,2007.8,2007.5,14.5]
[1743131197027,5.48002882,2007.8,2007.4,0.867482]
[1743131197220,5.83202301,2007.8,2007.4,0.867482]
[1743131197418,10.81274301,2007.8,2007.4,0.867482]
[1743131197657,5.79731,2007.8,2007.4,0.867482]
[1743131197859,10.81270301,2007.8,2007.4,0.867482]
[1743131198020,4.98098,2007.7,2007.4,0.867482]
[1743131198221,0.03471301,2007.6,2007.4,0.867482]
[1743131198918,0.03471301,2007.6,2007.4,0.117182]
[1743131199361,5.01578301,2007.6,2007.4,0.117182]
[1743131199555,5.01581301,2007.6,2007.4,0.117182]
[1743131199754,5.01597301,2007.6,2007.4,0.117182]
[1743131200058,4.98132,2007.5,2007.4,0.117182]
[1743131200220,9.9625,2007.6,2007.4,0.117182]
[1743131201224,4.98132,2007.5,2007.4,0.117182]
[1743131201561,5.01603301,2007.5,2007.4,0.117182]
[1743131201754,0.03471301,2007.5,2007.4,0.117182]
[1743131202936,5.84363301,2007.5,2007.4,0.117182]
[1743131209061,5.84363301,2007.5,2007.4,0.09624185]
[1743131209257,9.27229558,2007.5,2007.4,0.09624185]
[1743131209460,5.01603301,2007.5,2007.4,0.09624185]
[1743131211628,12.81349558,2007.5,2007.4,0.09624185]
[1743131211829,54.34758182,2007.5,2007.4,1.85e-06]
[1743131212054,0.7755,2006.8,2006.2,0.7557]
[1743131212379,4.98389,2006.5,2006.2,0.7557]
[1743131212581,0.03471301,2006.4,2006.2,0.7557]
[1743131212880,4.98429,2006.3,2006.1,0.05]
[1743131213080,0.03471301,2006.2,2006.1,0.05]
[1743131213253,5.01925301,2006.2,2006.1,0.05]
[1743131214343,5.56925301,2006.2,2006.1,0.05]
[1743131215160,5.01925301,2006.2,2006.1,0.05]
[1743131215744,0.03471301,2006.2,2006.1,0.05]
[1743131217885,0.03471301,2006.2,2006.1,14.55]
[1743131218291,5.82715301,2006.2,2006.1,0.05]
[1743131218459,0.84261301,2006.2,2006.1,0.05]
[1743131218656,0.03471301,2006.2,2006.1,0.05]
[1743131219371,0.03471301,2006.2,2006.1,14.55]
[1743131220668,15.70834,2006.7,2006.2,0.7939]
[1743131220986,0.03471301,2006.5,2006.2,0.7939]
[1743131221182,0.03471301,2006.6,2006.2,0.7939]
[1743131221389,33.72169,2007.0,2006.3,3.42866257]
[1743131221390,4.75271301,2006.8,2006.3,3.42866257]
[1743131221685,0.03471301,2006.8,2006.4,0.7644]
[1743131222184,0.03471301,2006.8,2006.4,1.18869032]
[1743131222386,0.03471301,2006.9,2006.6,0.8288]
[1743131222574,0.03471301,2007.2,2006.6,0.8288]
[1743131222747,0.99114884,2007.1,2006.6,0.8288]
[1743131222953,0.03471301,2007.0,2006.6,0.8288]
[1743131223263,0.03471301,2007.2,2006.7,3.42866257]
[1743131223462,1.04533138,2007.2,2006.7,3.42866257]
[1743131223661,1.04533138,2007.2,2006.6,1.34680469]
[1743131224379,1.04533138,2007.2,2006.6,1.29697529]
[1743131224552,1.04533138,2007.2,2006.7,0.52239176]
[1743131224887,1.04533138,2007.2,2006.7,3.90122636]
[1743131225083,1.01061837,2007.2,2006.8,0.817]
[1743131225476,0.03471301,2007.1,2006.9,14.5]
[1743131225985,0.03471301,2007.3,2006.9,14.5]
[1743131226671,1.04641877,2007.3,2006.9,14.5]
[1743131226855,1.04641877,2007.3,2006.8,0.817]
[1743131227080,1.04641877,2007.3,2006.8,0.86682546]
[1743131227393,1.04641877,2007.3,2006.8,15.36682546]
[1743131227562,1.04641877,2007.3,2006.8,0.817]
[1743131227747,4.47508134,2007.3,2006.5,3.42866257]
[1743131227952,9.45691134,2007.3,2006.6,0.8217]
[1743131228291,9.45691134,2007.3,2006.6,0.87152993]
[1743131228584,9.45691134,2007.3,2006.8,0.7859]
[1743131228585,0.03471301,2007.3,2006.8,0.7859]
[1743131230657,5.01652301,2007.3,2006.8,0.7859]
[1743131230861,0.03471301,2007.3,2006.8,0.7859]
[1743131233704,0.03471301,2007.3,2007.0,0.8136]
[1743131234987,0.03471301,2007.3,2006.5,14.5]
[1743131234988,0.03471301,2007.3,2006.8,0.7604]
[1743131236473,0.03471301,2007.3,2006.8,0.810226]
[1743131236664,0.03471301,2007.3,2006.9,3.42866257]
[1743131237000,0.03471301,2007.4,2007.0,0.7561]
[1743131237980,0.03471301,2007.5,2007.0,0.7561]
[1743131238583,0.03471301,2007.5,2007.2,0.8149]
[1743131238910,2.21127197,2007.7,2007.4,0.8101]
[1743131239607,2.21127197,2007.7,2007.4,0.85991195]
[1743131239770,2.21127197,2007.7,2007.4,0.8101]
[1743131240610,2.21127197,2007.7,2007.4,0.85991027]
[1743131240815,2.21127197,2007.7,2007.4,0.8101]
[1743131241014,2.21127197,2007.7,2007.4,0.85991024]
[1743131241180,2.21127197,2007.7,2007.4,0.8101]
[1743131241383,2.24598498,2007.7,2007.4,0.8101]
[1743131242223,2.24598498,2007.7,2007.4,15.3101]
[1743131242514,2.24598498,2007.7,2007.4,0.8101]
[1743131242690,2.21127197,2007.7,2007.4,0.8101]
[1743131244409,2.21127197,2007.7,2006.7,0.7737]
[1743131244410,4.98133,2007.5,2006.7,0.7737]
[1743131244613,0.8227,2007.3,2006.7,0.7737]
[1743131244908,3.0,2007.5,2006.9,0.7897]
[1743131244909,0.03471301,2007.2,2006.9,0.7897]
[1743131245209,5.01629301,2007.4,2006.9,0.7897]
[1743131246013,4.98182,2007.3,2006.9,0.7897]
[1743131246332,0.03471301,2007.2,2006.9,0.7897]
[1743131246623,0.03471301,2007.3,2006.9,0.7897]
[1743131247625,5.01653301,2007.3,2006.9,0.7897]
[1743131248189,5.01653301,2007.3,2006.7,0.8245]
[1743131248384,4.98217,2007.2,2006.8,14.5]
[1743131248589,0.03471301,2007.1,2006.8,14.5]
[1743131254213,10.72947,2007.1,2006.5,0.82783233]
[1743131254550,0.03471301,2007.0,2006.5,0.82783233]
[1743131254706,0.03471301,2007.0,2006.5,1.29591085]
[1743131255554,0.03471301,2007.0,2006.8,3.42866257]
[1743131255715,0.03471301,2007.3,2006.9,0.8028]
[1743131255917,5.01653301,2007.3,2006.9,0.8028]
[1743131256145,0.8315,2007.2,2006.7,0.8028]
[1743131256337,0.03471301,2007.1,2006.7,1.57275411]
[1743131257017,0.03471301,2007.3,2006.7,1.57275411]
[1743131257534,0.03222167,2007.3,2006.7,1.57275411]
[1743131257830,9.99609167,2007.3,2006.7,1.57275411]
[1743131258033,4.98217,2007.2,2006.7,1.57275411]
[1743131258230,0.03222167,2007.1,2006.8,0.50014167]
[1743131258836,0.03222167,2007.1,2006.7,0.8028]
[1743131259037,5.01455167,2007.1,2006.7,0.8028]
[1743131259345,0.03222167,2007.1,2006.7,0.8028]
[1743131260248,5.01461167,2007.1,2006.7,0.8028]
[1743131266253,9.99714167,2007.1,2006.7,0.8028]
[1743131266416,9.96492,2007.1,2006.7,0.8028]
[1743131266751,0.03222167,2007.0,2006.7,0.8028]
[1743131267053,0.03222167,2007.0,2006.7,15.3028]
[1743131267256,0.03222167,2007.0,2006.7,17.22275411]
[1743131267849,5.01483167,2007.0,2006.7,17.22275411]
[1743131268055,5.01483167,2007.0,2006.7,0.8028]
[1743131268553,4.98285,2006.9,2006.4,14.5]
[1743131268756,5.01540167,2006.8,2006.5,0.8106]
[1743131269129,5.01537167,2006.8,2006.5,0.8106]
[1743131271258,9.99865167,2006.8,2006.3,0.7974]
[1743131271557,4.98331,2006.7,2006.3,3.14770626]
[1743131271857,0.03222167,2006.6,2006.3,3.14770626]
[1743131272457,0.03222167,2006.6,2006.3,0.7974]
[1743131272662,0.03222167,2006.7,2006.3,15.2974]
[1743131272859,5.01554167,2006.7,2006.3,15.2974]
[1743131273060,0.03222167,2006.7,2006.3,15.2974]
[1743131273263,4.98382,2006.5,2006.1,0.05]
[1743131273434,0.03222167,2006.4,2006.1,0.05]
[1743131273630,5.01637167,2006.4,2006.1,0.05]
[1743131273825,4.98432,2006.3,2006.1,0.05]
[1743131274044,0.03222167,2006.2,2006.1,0.05]
[1743131274554,5.01676167,2006.2,2006.1,0.05]
[1743131275931,12.79342424,2006.2,2006.1,0.05]
[1743131276130,12.76120257,2006.2,2006.1,0.05]
[1743131277574,3.0,2005.0,2004.1,0.05]
[1743131277872,0.03222167,2004.9,2004.5,0.79]
[1743131278076,0.03222167,2004.9,2004.6,3.42866257]
[1743131278380,0.03222167,2005.2,2004.7,0.04988236]
[1743131278672,4.9874,2005.1,2004.6,3.42866257]
[1743131278972,4.98783,2004.9,2004.6,0.04987829]
[1743131279269,10.00855167,2004.8,2004.5,0.79]
[1743131279474,5.02069167,2004.7,2004.5,0.79]
[1743131279674,0.03222167,2004.7,2004.5,0.79]
[1743131279867,5.02062167,2004.7,2004.3,0.765]
[1743131280264,0.03222167,2004.7,2004.3,0.765]
[1743131280464,9.97743,2004.6,2004.1,0.815]
[1743131280777,0.03222167,2004.5,2004.1,0.815]
[1743131283180,0.03222167,2004.5,2004.2,3.42866257]
[1743131283361,11.70592814,2005.3,2004.4,3.42866257]
[1743131283566,0.03222167,2005.2,2004.7,3.42866257]
[1743131284073,8.01935167,2005.2,2004.5,4.18466257]
[1743131284480,0.03222167,2005.2,2004.5,4.18466257]
[1743131284869,0.03222167,2005.2,2004.7,3.42866257]
[1743131285362,5.01940167,2005.2,2004.7,3.42866257]
[1743131285563,0.03222167,2005.2,2004.5,4.18466257]
[1743131285762,3.55,2004.8,2004.2,0.8111]
[1743131285976,5.02063167,2004.7,2004.2,0.8111]
[1743131286138,5.02061167,2004.7,2004.2,0.8111]
[1743131286344,10.00900167,2004.7,2004.2,0.8111]
[1743131286543,4.98839,2004.7,2004.2,0.8111]
[1743131286772,10.00906167,2004.7,2004.2,0.8111]
[1743131287072,9.97678,2004.7,2004.2,0.8111]
[1743131287246,4.98853,2004.6,2004.2,0.8111]
[1743131287440,0.03222167,2004.5,2004.2,0.8111]
[1743131287646,0.85042167,2004.5,2004.1,0.05]
[1743131287875,0.03222167,2004.5,2004.2,0.7867]
[1743131288241,0.03222167,2004.6,2004.2,0.7867]
[1743131288980,0.03222167,2004.8,2004.3,0.04262087]
[1743131289276,4.955,2004.9,2004.4,0.7867]
[1743131289476,0.03222167,2004.8,2004.4,0.7867]
[1743131290076,5.02035167,2004.8,2004.4,0.7867]
[1743131290280,0.03222167,2004.8,2004.4,0.7867]
[1743131290838,6.03516748,2004.8,2004.4,0.7867]
[1743131291070,4.9884,2004.7,2004.4,0.7867]
[1743131291270,0.03222167,2004.6,2004.4,0.7867]
[1743131291666,4.955,2004.9,2004.4,0.7867]
[1743131291883,4.98722167,2004.9,2004.4,0.7867]
[1743131292079,4.98814,2004.8,2004.4,0.7867]
[1743131292285,0.03222167,2004.7,2004.4,0.7867]
[1743131293005,4.98722167,2004.9,2004.4,0.7867]
[1743131293871,13.70725845,2005.2,2004.4,0.7867]
[1743131294099,0.03222167,2005.0,2004.4,0.7867]
[1743131294384,0.03222167,2005.0,2004.4,1.66097]
[1743131294907,0.03222167,2005.0,2004.5,0.04988073]
[1743131295080,0.03222167,2005.1,2004.6,0.8078]
[1743131295276,4.98758,2005.0,2004.6,0.8078]
[1743131295482,0.03222167,2005.1,2004.6,0.8078]
[1743131296208,10.72852,2005.3,2004.6,0.8078]
[1743131296209,0.03222167,2005.2,2004.6,0.8078]
[1743131296389,0.03222167,2005.3,2004.8,0.8288]
[1743131296901,0.03222167,2005.4,2004.9,0.049872]
[1743131297104,0.03222167,2005.5,2005.0,0.7619]
[1743131297909,0.03222167,2005.5,2004.6,3.0]
[1743131297910,4.98717,2005.2,2004.5,5.7139]
[1743131298088,0.03222167,2005.1,2004.5,5.7139]
[1743131298288,5.01925167,2005.2,2004.5,0.7619]
[1743131298487,5.84145167,2005.2,2004.5,0.7619]
[1743131298805,4.9873,2005.1,2004.5,0.7619]
[1743131298982,0.03222167,2005.0,2004.5,0.7619]
[1743131299504,5.01971167,2005.1,2004.5,0.7619]
[1743131300408,4.98759,2005.0,2004.5,0.7619]
[1743131300614,0.03222167,2004.9,2004.5,0.7619]
[1743131301580,0.03222167,2005.0,2004.5,0.7619]
[1743131302412,0.03222167,2005.0,2004.6,0.04988094]
[1743131302580,0.03222167,2005.1,2004.6,0.04988094]
[1743131303086,0.03222167,2005.1,2004.7,0.7591]
[1743131303488,0.03222167,2005.2,2004.7,0.7591]
[1743131304420,5.01931167,2005.2,2004.7,0.7591]
[1743131305725,0.03222167,2005.2,2004.7,0.7591]
[1743131306051,0.03222167,2005.2,2004.8,0.04987442]
[1743131306327,0.03222167,2005.3,2004.9,0.7591]
[1743131307730,5.01900167,2005.3,2004.9,0.7591]
[1743131308810,0.03222167,2005.3,2004.9,0.7591]
[1743131308995,5.01908167,2005.3,2004.9,0.7591]
[1743131309522,8.01908167,2005.3,2004.9,0.7591]
[1743131310433,4.98711,2005.2,2004.4,3.44460107]
[1743131310618,5.01966167,2005.1,2004.7,0.8056]
[1743131310817,0.03222167,2005.1,2004.7,0.8056]
[1743131313101,5.01961167,2005.1,2004.7,0.8056]
[1743131313427,0.03222167,2005.1,2004.7,0.8056]
[1743131314621,4.98776,2005.0,2004.7,0.8056]
[1743131314828,0.03222167,2004.9,2004.3,3.0]
[1743131315031,0.03222167,2004.9,2004.4,0.8084]
[1743131316448,4.98806,2004.8,2004.4,0.8084]
[1743131316607,5.02067167,2004.7,2004.4,0.8084]
[1743131316802,5.02067167,2004.7,2003.8,5.28728657]
[1743131316803,4.98877,2004.5,2004.2,0.7755]
[1743131317042,0.03222167,2004.4,2004.2,0.7755]
[1743131317285,4.9893,2004.3,2004.0,0.7755]
[1743131317450,5.02174167,2004.2,2003.6,3.44460107]
[1743131317743,0.03222167,2004.2,2003.8,0.7755]
[1743131318111,0.03222167,2004.2,2003.8,4.22010107]
[1743131318410,5.7182,2004.6,2004.2,0.8217]
[1743131318610,0.03222167,2004.5,2004.2,0.8217]
[1743131319708,13.82560107,2004.8,2004.2,0.8217]
[1743131319709,3.0,2004.8,2004.2,4.26630107]
[1743131319913,0.03222167,2004.7,2004.3,14.5]
[1743131321008,4.924,2004.9,2004.4,0.81148639]
[1743131321238,4.924,2004.9,2004.4,6.13169621]
[1743131321239,0.03222167,2004.9,2004.4,6.13169621]
[1743131321447,10.73715,2005.2,2004.5,0.7616]
[1743131321622,0.03222167,2005.1,2004.6,17.94460107]
[1743131321821,0.03222167,2005.1,2004.7,0.7616]
[1743131322456,0.03222167,2005.1,2004.8,14.5]
[1743131326391,0.03222167,2005.3,2004.9,0.7549]
[1743131326991,0.03222167,2005.3,2004.9,15.2549]
[1743131327790,4.98709,2005.2,2004.9,15.2549]
[1743131328093,4.98679,2005.3,2004.9,15.2549]
[1743131328252,0.03222167,2005.2,2004.9,15.2549]
[1743131328675,0.03222167,2005.2,2004.9,0.7549]
[1743131330409,7.98657,2005.4,2004.9,1.17485011]
[1743131330410,0.03222167,2005.3,2004.9,1.17485011]
[1743131330971,1.01963918,2005.5,2005.0,0.04987341]
[1743131331277,0.03222167,2005.5,2005.0,0.86527011]
[1743131331513,0.03222167,2005.5,2005.2,0.8108]
[1743131332600,0.03222167,2005.6,2005.2,0.8108]
[1743131334115,5.01828167,2005.6,2005.2,0.8108]
[1743131334294,0.03222167,2005.6,2005.2,0.8108]
[1743131334919,5.01827167,2005.6,2005.2,0.8108]
[1743131335423,10.00454167,2005.6,2005.2,0.8108]
[1743131335591,9.97232,2005.6,2005.2,0.8108]
[1743131335790,0.03222167,2005.5,2005.2,0.8108]
[1743131336402,1.05136876,2005.8,2005.2,15.3108]
[1743131336598,4.05136876,2005.8,2005.3,0.816]
[1743131336930,0.03222167,2005.8,2005.4,1.5316]
[1743131337128,3.03222167,2005.9,2005.4,1.5316]
[1743131337628,8.01756167,2005.9,2005.4,1.5316]
[1743131338295,3.03222167,2005.9,2005.4,1.5316]
[1743131338792,8.01755167,2005.9,2005.4,1.5316]
[1743131338997,8.01755167,2005.9,2005.5,0.58420615]
[1743131339530,4.9859,2005.7,2005.4,1.5316]
[1743131339731,0.03222167,2005.7,2005.3,0.816]
[1743131340025,0.03222167,2005.7,2005.4,14.5]
[1743131340234,0.03222167,2005.7,2005.3,0.816]
[1743131340423,5.01817167,2005.7,2005.3,0.816]
[1743131341937,4.98604,2005.6,2005.3,0.816]
[1743131342138,4.98604,2005.6,2005.1,15.316]
[1743131342433,4.98673,2005.4,2005.1,17.19206011]
[1743131342633,0.03222167,2005.3,2004.8,0.7691]
[1743131342823,10.00602167,2005.3,2004.8,0.7691]
[1743131343020,0.03222167,2005.2,2004.8,15.2691]
[1743131343334,5.01927167,2005.2,2004.8,15.2691]
[1743131343533,4.98729,2005.1,2004.8,15.2691]
[1743131343741,0.03222167,2005.0,2004.8,15.2691]
[1743131344104,5.83536167,2005.0,2004.6,0.8241]
[1743131344727,5.83536167,2005.0,2004.6,15.3241]
[1743131345419,10.82304167,2005.0,2004.6,15.3241]
[1743131345636,5.80314,2005.0,2004.6,15.3241]
[1743131345936,5.83536167,2005.0,2004.6,15.3241]
[1743131346139,5.83547167,2005.0,2004.6,15.3241]
[1743131346638,5.83546167,2005.0,2004.6,14.5]
[1743131346940,0.03222167,2004.9,2004.6,14.5]
[1743131347742,0.03222167,2004.9,2004.4,0.8126]
[1743131347938,0.03222167,2004.9,2004.5,0.42572011]
[1743131348148,0.03222167,2004.9,2004.6,14.5]
[1743131348310,0.97978218,2005.3,2004.7,4.25720107]
[1743131348311,0.03222167,2005.2,2004.7,4.25720107]
[1743131348506,0.03222167,2005.2,2004.7,4.30707701]
[1743131349047,0.03222167,2005.2,2004.8,14.5]
[1743131349209,0.03222167,2005.2,2004.8,16.3807077]
[1743131350339,5.01876167,2005.4,2005.0,0.8229]
[1743131350525,4.98688,2005.3,2004.8,2.7036077]
[1743131350725,0.03222167,2005.2,2004.8,0.8229]
[1743131350918,0.03222167,2005.2,2004.9,14.5]
[1743131351650,0.03222167,2005.4,2005.1,3.44460107]
[1743131351817,0.83,2005.5,2005.1,3.44460107]
[1743131352431,0.86222167,2005.5,2004.9,3.44460107]
[1743131352633,0.86222167,2005.5,2005.0,0.42675011]
[1743131353147,0.86222167,2005.5,2005.1,14.5]
[1743131353311,5.84856167,2005.5,2005.1,14.5]
[1743131353512,4.98656,2005.4,2005.1,14.5]
[1743131353735,0.03222167,2005.3,2005.1,14.5]
[1743131354809,5.01911167,2005.3,2005.1,14.5]
[1743131355011,5.01911167,2005.3,2004.8,0.8229]
[1743131355214,5.01911167,2005.3,2004.8,2.34055011]
[1743131355413,4.98717,2005.2,2004.9,14.5]
[1743131355813,5.01939167,2005.2,2004.9,14.5]
[1743131356047,5.01939167,2005.2,2004.8,0.8229]
[1743131356374,10.77943167,2005.2,2004.7,4.22460107]
[1743131356514,5.76004,2005.2,2004.8,14.5]
[1743131356710,0.03222167,2005.1,2004.8,14.5]
[1743131360752,5.01951167,2005.1,2004.8,14.5]
[1743131363034,10.00693167,2005.1,2004.8,14.5]
[1743131363218,4.98729,2005.1,2004.8,14.5]
[1743131363421,10.00692167,2005.1,2004.8,14.5]
[1743131363621,4.98729,2005.1,2004.8,14.5]